fUSD/lending_fUSD_20260205
["ID","MTS","AMOUNT","RATE_DAILY","PERIOD"]
[404546624,1770275443554,-500.0,0.00017973,2]
[404546625,1770275443564,-500.0,0.00017973,2]
[404546626,1770275443575,-500.0,0.00017973,2]
[404546627,1770275443586,-500.0,0.00017973,2]
[404546628,1770275443597,-500.0,0.00017973,2]
[404546629,1770275443607,-500.0,0.00017973,2]
[404546630,1770275443624,-500.0,0.00017973,2]
[404546631,1770275443635,-520.97702983,0.00017973,2]
[404546632,1770275443646,-500.0,0.00017973,2]
[404546633,1770275443658,-500.0,0.00017973,2]
[404546634,1770275443668,-500.0,0.00017973,2]
[404546635,1770275443678,-309.44398841,0.00017973,2]
[404546636,1770275443689,-500.0,0.00017973,2]
[404546637,1770275443699,-500.0,0.00017973,2]
[404546638,1770275443709,-500.0,0.00017973,2]
[404546639,1770275443721,-500.0,0.00017973,2]
[404546640,1770275443731,-500.0,0.00017973,2]
[404546641,1770275443742,-500.0,0.00017973,2]
[404546642,1770275443752,-500.0,0.00017973,2]
[404546643,1770275443762,-500.0,0.00017973,2]
[404546644,1770275443782,-500.0,0.00017973,2]
[404546645,1770275443813,-500.0,0.00017973,2]
[404546646,1770275443840,-502.08032841,0.00017973,2]
[404546647,1770275443866,-500.0,0.00017973,2]
[404546648,1770275443878,-500.0,0.00017973,2]
[404546649,1770275443905,-500.0,0.00017973,2]
[404546650,1770275443916,-500.0,0.00017973,2]
[404546651,1770275443933,-500.0,0.00017973,2]
[404546652,1770275443946,-500.0,0.00017973,2]
[404546653,1770275443957,-500.0,0.00017973,2]
[404546654,1770275443969,-500.0,0.00017973,2]
[404546655,1770275443982,-500.0,0.00017973,2]
[404546656,1770275443994,-500.0,0.00017973,2]
[404546657,1770275444005,-262.39107038,0.00017973,2]
[404546658,1770275444018,-500.0,0.00017973,2]
[404546659,1770275444029,-500.0,0.00017973,2]
[404546660,1770275444040,-500.0,0.00017982,2]
[404546661,1770275444051,-151.0,0.00017991,2]
[404546662,1770275444062,-500.0,0.00017993,2]
[404546663,1770275444079,-500.0,0.00017993,2]
[404546664,1770275444089,-500.0,0.00017993,2]
[404546665,1770275444100,-160.87387984,0.00017993,2]
[404546666,1770275444111,-500.0,0.00017993,2]
[404546667,1770275444122,-500.0,0.00017993,2]
[404546668,1770275444133,-328.80573398,0.00017993,2]
[404546669,1770275444144,-405.3888533,0.00017993,2]
[404546670,1770275444155,-265833.1458938,0.00017994,2]
[404546671,1770275444166,-10234.9330719,0.00017994,2]
[404546672,1770275444177,-72517.7952519,0.00017994,2]
[404546673,1770275444188,-2440.0632415,0.00017994,2]
[404546674,1770275444199,-16540.2474378,0.00017994,2]
[404546675,1770275444213,-391.0,0.00017995,2]
[404546676,1770275444224,-500.0,0.00017995,2]
[404546677,1770275444234,-22636.9049242,0.00017996,2]
[404546678,1770275444244,-72530.1130593,0.00017996,2]
[404546679,1770275444255,-151.0,0.00017997,2]
[404546680,1770275444266,-519.49,0.00017998,2]
[404546681,1770275444277,-519.49,0.00017998,2]
[404546682,1770275444287,-155.787,0.00017999,2]
[404546683,1770275444300,-519.49,0.00017999,2]
[404546684,1770275444311,-519.49,0.00017999,2]
[404546685,1770275444322,-519.49,0.00017999,2]
[404546686,1770275444333,-519.49,0.00017999,2]
[404546687,1770275444343,-519.53,0.00017999,2]
[404546688,1770275444354,-300.0,0.00017999,2]
[404546689,1770275444365,-300.0,0.00017999,2]
[404546690,1770275444376,-500.0,0.00017999,2]
[404546691,1770275444387,-500.0,0.00017999,2]
[404546693,1770275444398,-500.0,0.00017999,2]
[404546695,1770275444409,-418.4948437,0.00017999,2]
[404546696,1770275444420,-519.87500599,0.00017999,2]
[404546697,1770275444430,-300.0,0.00017999,2]
[404546698,1770275444441,-778.44145262,0.00017999,2]
[404546699,1770275444451,-500.0,0.00017999,2]
[404546700,1770275444462,-500.0,0.00017999,2]
[404546701,1770275444473,-500.0,0.00017999,2]
[404546702,1770275444485,-500.0,0.00017999,2]
[404546703,1770275444496,-350.20210057,0.00017999,2]
[404546704,1770275444507,-590.10761957,0.00017999,2]
[404546705,1770275444519,-500.0,0.00017999,2]
[404546706,1770275444529,-500.0,0.00017999,2]
[404546707,1770275444540,-500.0,0.00017999,2]
[404546708,1770275444550,-500.0,0.00017999,2]
[404546709,1770275444561,-500.0,0.00017999,2]
[404546710,1770275444572,-500.0,0.00017999,2]
[404546711,1770275444583,-500.0,0.00017999,2]
[404546712,1770275444593,-500.0,0.00017999,2]
[404546713,1770275444604,-500.0,0.00017999,2]
[404546714,1770275444615,-500.0,0.00017999,2]
[404546716,1770275444626,-500.0,0.00017999,2]
[404546718,1770275444637,-500.0,0.00017999,2]
[404546720,1770275444648,-351.5182,0.00017999,2]
[404546722,1770275444663,-300.0,0.00017999,2]
[404546724,1770275444674,-666.0,0.00017999,2]
[404546726,1770275444684,-2371372.29142566,0.00018,2]
[404546728,1770275444694,-185327.76115821,0.00018,2]
[404546730,1770275444719,-143246.35797136,0.00018,2]
[404546731,1770275444735,-1120.048768,0.00018,2]
[404546732,1770275444752,-87768.46569344,0.00018,2]
[404546734,1770275447066,-455.121696,0.00011327,2]
[404546735,1770275447076,-3023.04359583,0.00012831,2]
[404546736,1770275447089,-5441.82533455,0.00012831,2]
[404546737,1770275447099,-1148.0,0.00015812,2]
[404546738,1770275447109,-743.47810788,0.000179,2]
[404546739,1770275447119,-30122.50774611,0.00018,2]
[404546740,1770275447131,-338.69943207,0.00018,2]
[404546742,1770275448619,-8464.86893038,0.00013555,2]
[404546743,1770275448629,-3254.0,0.00015745,2]
[404546744,1770275448639,-3195.19654627,0.00018,2]
[404546745,1770275448659,-1297.07810104,0.00018,2]
[404546746,1770275448695,-2291.40034133,0.00018,2]
[404546747,1770275448707,-362.84828034,0.00018,2]
[404546748,1770275448897,-1141.6,0.00018,2]
[404546878,1770275613863,-247.82603596,0.00011184,2]
[404546879,1770275613886,-1143.17396404,0.00011184,2]
[404546880,1770275622517,-1919.76171074,0.00011184,2]
[404546881,1770275622537,-150.0,0.00011283,2]
[404546882,1770275622558,-300.0,0.00011283,2]
[404546883,1770275622579,-250.0,0.00011284,2]
[404546884,1770275622600,-4022.9582,0.00011284,2]
[404546885,1770275622625,-3357.28008926,0.00011284,2]
[404546886,1770275624838,-1729.25055793,0.00011184,2]
[404546887,1770275624864,-8270.74944207,0.00011284,2]
[404546888,1770275625275,-10000.0,0.00011284,2]
[404546889,1770275625722,-10000.0,0.00011284,2]
[404546890,1770275626181,-10000.0,0.00011284,2]
[404546891,1770275626568,-10000.0,0.00011284,2]
[404546892,1770275627196,-10000.0,0.00011284,2]
[404546893,1770275627501,-10000.0,0.00011284,2]
[404546894,1770275627687,-10000.0,0.00011284,2]
[404546895,1770275628094,-10000.0,0.00011284,2]
[404546896,1770275628472,-10000.0,0.00011284,2]
[404546897,1770275628941,-10000.0,0.00011284,2]
[404546898,1770275629306,-10000.0,0.00011284,2]
[404546899,1770275629654,-10000.0,0.00011284,2]
[404546900,1770275630045,-10000.0,0.00011284,2]
[404546901,1770275630350,-10000.0,0.00011284,2]
[404546902,1770275630762,-10000.0,0.00011284,2]
[404546903,1770275631222,-10000.0,0.00011284,2]
[404546904,1770275631614,-10000.0,0.00011284,2]
[404546905,1770275632061,-10000.0,0.00011284,2]
[404546906,1770275632456,-10000.0,0.00011284,2]
[404546907,1770275632923,-10000.0,0.00011284,2]
[404546908,1770275633285,-10000.0,0.00011284,2]
[404546909,1770275633664,-10000.0,0.00011284,2]
[404546910,1770275634010,-10000.0,0.00011284,2]
[404546911,1770275634512,-10000.0,0.00011284,2]
[404546912,1770275634897,-10000.0,0.00011284,2]
[404546913,1770275635427,-10000.0,0.00011284,2]
[404546914,1770275635705,-10000.0,0.00011284,2]
[404546915,1770275636095,-10000.0,0.00011284,2]
[404546916,1770275636485,-10000.0,0.00011284,2]
[404546917,1770275636919,-10000.0,0.00011284,2]
[404546918,1770275638036,-10000.0,0.00011284,2]
[404546919,1770275638645,-10000.0,0.00011284,2]
[404546920,1770275639414,-10000.0,0.00011284,2]
[404546921,1770275640290,-10000.0,0.00011284,2]
[404546922,1770275641202,-10000.0,0.00011284,2]
[404546954,1770276486902,500.0,0.00010532,3]
[404546964,1770276631676,-288.1864068,8.999e-05,2]
[404546965,1770276631688,-911.8135932,8.999e-05,2]
[404546966,1770276631698,-15000.0,9e-05,2]
[404546967,1770276631707,-250.0,9.899e-05,2]
[404546968,1770276631718,-272.9601677,9.9e-05,2]
[404546969,1770276631727,-250.0,9.9e-05,2]
[404546970,1770276631736,-250.0,9.9e-05,2]
[404546971,1770276631745,-300.0,9.9e-05,2]
[404546972,1770276631754,-247.97,0.00010404,2]
[404546973,1770276631764,-1600.0,0.00010464,2]
[404546974,1770276631773,-200.0,0.00010811,2]
[404546975,1770276631783,-1850.13904102,0.000109,2]
[404546976,1770276631792,-150.0,0.00010903,2]
[404546977,1770276631801,-269.92100004,0.00010903,2]
[404546978,1770276631810,-150.0,0.00010958,2]
[404546979,1770276631819,-151.0,0.00010981,2]
[404546980,1770276631829,-151.0,0.00010981,2]
[404546981,1770276631838,-220.272501,0.00010981,2]
[404546982,1770276631847,-247.97,0.00010982,2]
[404546983,1770276631857,-150.0,0.00010983,2]
[404546984,1770276631866,-188.82991732,0.00010983,2]
[404546985,1770276631875,-184641.15394623,0.00010984,2]
[404546986,1770276631887,-13705.76781769,0.00010984,2]
[404546987,1770276631898,-72959.13474599,0.00010984,2]
[404546988,1770276631929,-1576.2183033,0.00010984,2]
[404546989,1770276631970,-158.6561848,0.00010984,2]
[404546990,1770276631982,-6334.75982651,0.00010984,2]
[404546991,1770276631994,-629.78315387,0.00010984,2]
[404546993,1770276632005,-529.67461947,0.00010984,2]
[404546995,1770276632017,-486.87103,0.00010984,2]
[404546997,1770276632028,-2756.47653188,0.00010984,2]
[404546999,1770276637876,-166.35748064,0.00010884,2]
[404547000,1770276637886,-4438.13222969,0.00010984,2]
[404547001,1770276638012,-896.40182499,0.00010984,2]
[404547002,1770276638051,-634.59901641,0.00010984,2]
[404547003,1770276638063,-654.49740024,0.00010984,2]
[404547004,1770276638075,-1401.9124575,0.00010984,2]
[404547032,1770276640278,-3208195.96091143,0.00010984,2]
[404547033,1770276640288,-2500.0,0.00010984,2]
[404547034,1770276640303,-273.38131323,0.00011013,2]
[404547035,1770276640316,-150.0,0.00011057,2]
[404547036,1770276640326,-150.0,0.00011057,2]
[404547037,1770276640336,-500.0,0.00011077,2]
[404547038,1770276640347,-500.0,0.00011077,2]
[404547039,1770276640358,-500.0,0.00011077,2]
[404547040,1770276640368,-500.0,0.00011077,2]
[404547041,1770276640379,-500.0,0.00011077,2]
[404547042,1770276640389,-151.0,0.00011077,2]
[404547043,1770276640399,-500.0,0.00011077,2]
[404547044,1770276640409,-151.0,0.00011077,2]
[404547045,1770276640418,-500.0,0.00011077,2]
[404547046,1770276640428,-151.0,0.00011077,2]
[404547047,1770276640438,-500.0,0.00011077,2]
[404547048,1770276640449,-151.0,0.00011077,2]
[404547049,1770276640459,-226.0059482,0.00011077,2]
[404547050,1770276640468,-151.0,0.00011077,2]
[404547051,1770276640479,-151.0,0.00011077,2]
[404547052,1770276640488,-151.0,0.00011077,2]
[404547053,1770276640498,-151.0,0.00011077,2]
[404547054,1770276640508,-151.0,0.00011077,2]
[404547055,1770276640517,-151.0,0.00011077,2]
[404547056,1770276640527,-151.0,0.00011077,2]
[404547057,1770276640537,-200.0,0.00011077,2]
[404547058,1770276640547,-200.0,0.00011077,2]
[404547059,1770276640557,-500.0,0.00011077,2]
[404547060,1770276640567,-276.0926,0.00011084,2]
[404547061,1770276640577,-2642.6339,0.00011084,2]
[404547062,1770276640587,-10854.93304223,0.00011099,2]
[404547063,1770276640597,-7969.01249741,0.00011099,2]
[404547064,1770276640606,-499.99,0.00011112,2]
[404547065,1770276640616,-4999.99,0.00011112,2]
[404547066,1770276640627,-9999.99,0.00011112,2]
[404547067,1770276640636,-9999.99,0.00011112,2]
[404547068,1770276640646,-150.99,0.00011112,2]
[404547069,1770276640656,-22333.09,0.00011112,2]
[404547070,1770276640666,-14611.7,0.00011112,2]
[404547071,1770276640681,-9999.99,0.00011112,2]
[404547072,1770276640691,-999.99,0.00011112,2]
[404547073,1770276640702,-201.3953049,0.00011112,2]
[404547074,1770276640713,-533.55,0.00011177,2]
[404547075,1770276640723,-150.99,0.00011177,2]
[404547076,1770276640732,-6655.19,0.00011177,2]
[404547077,1770276640742,-299.99,0.00011177,2]
[404547078,1770276640752,-1610.11,0.00011177,2]
[404547079,1770276640762,-5326.57,0.00011177,2]
[404547080,1770276640772,-3307.45,0.00011177,2]
[404547081,1770276640781,-1538.138,0.00011184,2]
[404547082,1770276640792,-186.727,0.00011184,2]
[404547083,1770276640801,-26496.8487,0.00011184,2]
[404547084,1770276640811,-1000.0,0.00011284,2]
[404547085,1770276640821,-9957.4395172,0.00011429,2]
[404547086,1770276640831,-20404.0908649,0.00011429,2]
[404547087,1770276640841,-24183.4818084,0.00011429,2]
[404547088,1770276640851,-6597.118566,0.00011429,2]
[404547089,1770276640864,-2793.289568,0.00011429,2]
[404547090,1770276640874,-1504.7061632,0.00011429,2]
[404547091,1770276640884,-533.55,0.00011451,2]
[404547092,1770276640894,-3412.98647683,0.000115,2]
[404547093,1770276640904,-247.97,0.0001156,2]
[404547094,1770276640914,-200.0,0.00011625,2]
[404547095,1770276640924,-200.0,0.00011625,2]
[404547096,1770276640933,-500.0,0.00011625,2]
[404547097,1770276640943,-10854.93304223,0.00011664,2]
[404547098,1770276640954,-533.55,0.00011725,2]
[404547099,1770276640963,-7969.0124974,0.00011728,2]
[404547100,1770276640973,-1600.0,0.00011772,2]
[404547101,1770276640982,-1850.13904095,0.00011886,2]
[404547102,1770276640992,-250.37152364,0.00011892,2]
[404547103,1770276641002,-1148.0,0.00011942,2]
[404547104,1770276641012,-500.0,0.0001196,2]
[404547105,1770276641021,-533.55,0.00011999,2]
[404547106,1770276641031,-500.0,0.00012015,2]
[404547107,1770276641043,-255.0,0.00012027,2]
[404547108,1770276641056,-185.53305553,0.0001207,2]
[404547109,1770276641066,-300.0,0.00012081,2]
[404547110,1770276641076,-247.97,0.00012138,2]
[404547111,1770276641085,-233.22924952,0.00012173,2]
[404547112,1770276641095,-500.0,0.00012173,2]
[404547113,1770276641105,-533.55,0.00012273,2]
[404547114,1770276641114,-31183.39,0.00012351,2]
[404547115,1770276641124,-10854.93304223,0.00012443,2]
[404547116,1770276641134,-7969.0124974,0.000125,2]
[404547117,1770276641144,-533.55,0.00012547,2]
[404547118,1770276641153,-163.85,0.00012587,2]
[404547119,1770276641163,-247.97,0.00012716,2]
[404547120,1770276641173,-500.0,0.00012721,2]
[404547121,1770276641183,-624.0,0.00012733,2]
[404547122,1770276641193,-533.55,0.00012821,2]
[404547123,1770276641205,-1850.13904095,0.00012889,2]
[404547124,1770276641214,-1600.0,0.0001308,2]
[404547125,1770276641224,-533.55,0.00013095,2]
[404547126,1770276641234,-9489.04716179,0.00013102,2]
[404547127,1770276641244,-25041.74559135,0.00013102,2]
[404547128,1770276641254,-44176.60751609,0.00013102,2]
[404547129,1770276641264,-24183.4818084,0.0001314,2]
[404547130,1770276641274,-6597.118566,0.0001314,2]
[404547131,1770276641283,-1504.7061632,0.0001314,2]
[404547132,1770276641294,-420.0,0.00013169,2]
[404547133,1770276641304,-718.0,0.000132,5]
[404547134,1770276641317,-10854.93304223,0.00013223,2]
[404547135,1770276641327,-2221.8050741,0.00013266,2]
[404547136,1770276641337,-7969.0124974,0.00013271,2]
[404547137,1770276641349,-247.97,0.00013294,2]
[404547138,1770276641358,-1000.0,0.00013323,2]
[404547139,1770276641366,-533.55,0.00013369,2]
[404547140,1770276641375,-247.44,0.00013578,2]
[404547141,1770276641387,-4552.7680623,0.00013622,2]
[404547142,1770276641407,-533.55,0.00013643,2]
[404547143,1770276641422,-495.751722,0.00013676,2]
[404547144,1770276641441,-500.0,0.00013698,2]
[404547145,1770276641455,-500.0,0.00013698,2]
[404547146,1770276641467,-500.0,0.00013698,2]
[404547147,1770276641478,-160.87387984,0.00013698,2]
[404547148,1770276641491,-500.0,0.00013698,2]
[404547149,1770276641501,-500.0,0.00013698,2]
[404547150,1770276641513,-500.0,0.00013698,2]
[404547151,1770276641523,-500.0,0.00013698,2]
[404547152,1770276641533,-500.0,0.00013698,2]
[404547153,1770276641543,-500.0,0.00013698,2]
[404547154,1770276641554,-500.0,0.00013698,2]
[404547155,1770276641564,-418.4948437,0.00013698,2]
[404547156,1770276641574,-500.0,0.00013698,2]
[404547157,1770276641584,-500.0,0.00013698,2]
[404547158,1770276641594,-500.0,0.00013698,2]
[404547159,1770276641604,-500.0,0.00013698,2]
[404547160,1770276641614,-519.87500599,0.00013698,2]
[404547161,1770276641624,-500.0,0.00013698,2]
[404547162,1770276641634,-500.0,0.00013698,2]
[404547163,1770276641644,-500.0,0.00013698,2]
[404547164,1770276641654,-500.0,0.00013698,2]
[404547165,1770276641664,-500.0,0.00013698,2]
[404547166,1770276641674,-590.10761957,0.00013698,2]
[404547167,1770276641684,-500.0,0.00013698,2]
[404547168,1770276641697,-507.70655637,0.00013698,2]
[404547169,1770276641708,-500.0,0.00013698,2]
[404547170,1770276641717,-500.0,0.00013698,2]
[404547171,1770276641727,-288.02611632,0.00013698,2]
[404547172,1770276641737,-500.0,0.00013698,2]
[404547173,1770276641747,-500.0,0.00013698,2]
[404547174,1770276641757,-500.0,0.00013698,2]
[404547175,1770276641767,-328.80573398,0.00013698,2]
[404547176,1770276641777,-500.0,0.00013698,2]
[404547177,1770276641787,-500.0,0.00013698,2]
[404547178,1770276641797,-500.0,0.00013698,2]
[404547179,1770276641806,-500.0,0.00013698,2]
[404547180,1770276641816,-500.0,0.00013698,2]
[404547181,1770276641825,-500.0,0.00013698,2]
[404547182,1770276641835,-500.0,0.00013698,2]
[404547183,1770276641845,-500.0,0.00013698,2]
[404547184,1770276641855,-500.0,0.00013698,2]
[404547185,1770276641865,-500.0,0.00013698,2]
[404547186,1770276641876,-500.0,0.00013698,2]
[404547187,1770276641886,-350.20210057,0.00013698,2]
[404547188,1770276641897,-405.3888533,0.00013698,2]
[404547189,1770276641917,-500.0,0.00013698,2]
[404547190,1770276641928,-501.96335117,0.00013698,2]
[404547191,1770276641938,-500.0,0.00013698,2]
[404547192,1770276641953,-500.0,0.00013698,2]
[404547193,1770276641963,-500.0,0.00013698,2]
[404547194,1770276641973,-500.0,0.00013698,2]
[404547195,1770276641983,-447.07793737,0.00013698,2]
[404547196,1770276641993,-500.0,0.00013698,2]
[404547197,1770276642007,-500.0,0.00013698,2]
[404547198,1770276642017,-500.0,0.00013698,2]
[404547199,1770276642027,-500.0,0.00013698,2]
[404547200,1770276642037,-500.0,0.00013698,2]
[404547201,1770276642048,-500.0,0.00013698,2]
[404547202,1770276642058,-500.0,0.00013698,2]
[404547203,1770276642067,-500.0,0.00013698,2]
[404547204,1770276642077,-500.0,0.00013698,2]
[404547205,1770276642087,-500.0,0.00013698,2]
[404547206,1770276642097,-500.0,0.00013698,2]
[404547207,1770276642107,-500.0,0.00013698,2]
[404547208,1770276642117,-500.0,0.00013698,2]
[404547209,1770276642127,-500.0,0.00013698,2]
[404547210,1770276642137,-500.0,0.00013698,2]
[404547211,1770276642147,-500.0,0.00013698,2]
[404547212,1770276642157,-500.0,0.00013698,2]
[404547213,1770276642167,-457.99797698,0.00013698,2]
[404547214,1770276642177,-519.49,0.00013698,2]
[404547215,1770276642186,-519.49,0.00013698,2]
[404547216,1770276642198,-519.49,0.00013698,2]
[404547217,1770276642208,-519.49,0.00013698,2]
[404547218,1770276642218,-519.49,0.00013698,2]
[404547219,1770276642233,-519.49,0.00013698,2]
[404547220,1770276642243,-519.49,0.00013698,2]
[404547221,1770276642254,-519.49,0.00013698,2]
[404547222,1770276642264,-519.49,0.00013698,2]
[404547223,1770276642274,-519.49,0.00013698,2]
[404547224,1770276642283,-519.49,0.00013698,2]
[404547225,1770276642293,-519.49,0.00013698,2]
[404547226,1770276642306,-519.49,0.00013698,2]
[404547227,1770276642316,-500.0,0.00013698,2]
[404547228,1770276642325,-500.0,0.00013698,2]
[404547229,1770276642335,-500.0,0.00013698,2]
[404547230,1770276642345,-500.0,0.00013698,2]
[404547231,1770276642355,-500.0,0.00013698,2]
[404547232,1770276642365,-500.0,0.00013698,2]
[404547233,1770276642375,-500.0,0.00013698,2]
[404547234,1770276642386,-500.0,0.00013698,2]
[404547235,1770276642396,-456.05071944,0.00013698,2]
[404547236,1770276642406,-247.97,0.00013872,2]
[404547237,1770276642415,-1850.13904095,0.00013891,2]
[404547238,1770276642426,-533.55,0.00013917,2]
[404547239,1770276642435,-10342.23705576,0.00014002,2]
[404547240,1770276642824,-512.69598647,0.00014002,2]
[404547241,1770276642834,-7969.0124974,0.00014043,2]
[404547242,1770276642844,-1015.8598668,0.00014111,2]
[404547243,1770276642854,-533.55,0.00014191,2]
[404547244,1770276642863,-160.0,0.00014289,2]
[404547245,1770276642873,-1600.0,0.00014388,2]
[404547246,1770276642882,-166.35748064,0.00014392,2]
[404547247,1770276642892,-247.97,0.0001445,2]
[404547248,1770276642901,-166.66,0.0001446,2]
[404547249,1770276642912,-533.55,0.00014465,2]
[404547250,1770276642921,-500.0,0.000146,2]
[404547251,1770276642930,-614.51163375,0.000146,2]
[404547252,1770276642940,-500.0,0.000146,2]
[404547253,1770276642951,-500.0,0.000146,2]
[404547254,1770276642960,-500.0,0.000146,2]
[404547255,1770276642969,-502.1700093,0.000146,2]
[404547256,1770276642979,-500.0,0.000146,2]
[404547257,1770276642989,-500.0,0.000146,2]
[404547258,1770276642998,-80.34663932,0.00014634,2]
[404547259,1770276643014,-70.65336068,0.00014634,2]
[404547260,1770276643024,-151.0,0.00014634,2]
[404547261,1770276643034,-152.0,0.00014714,3]
[404547262,1770276643043,-68.64528902,0.00014739,2]
[404547263,1770276643055,-385.40099724,0.00014739,2]
[404547294,1770276645878,-79.50371374,0.00014739,2]
[404547296,1770276645888,-166.66,0.00014764,2]
[404547297,1770276645898,-466.67628626,0.00014782,2]
[404547322,1770276646141,-7404.89382144,0.00014782,2]
[404547357,1770277644279,718.0,0.000115,5]
[404547384,1770277831941,-265.21400286,0.00010787,2]
[404547385,1770277831952,-238.0,0.00010787,2]
[404547387,1770277831962,-265.21400284,0.00010837,2]
[404547388,1770277831971,-148.0119943,0.00010858,2]
[404547389,1770277831999,-397.84647269,0.00010858,2]
[404547390,1770277832011,-1023.31953828,0.00010858,2]
[404547391,1770277832024,-1131.92990948,0.00010858,2]
[404547392,1770277832089,-1258.42417155,0.00010858,2]
[404547393,1770277832101,-2548.73865149,0.00010858,2]
[404547394,1770277832164,-3254.51138063,0.00010858,2]
[404547395,1770277832177,-614.53456366,0.00010858,2]
[404547396,1770277832190,-1002.22655749,0.00010858,2]
[404547397,1770277832217,-4439.56562393,0.00010858,2]
[404547398,1770277832230,-1680.66735613,0.00010858,2]
[404547399,1770277832247,-1678.09438079,0.00010858,2]
[404547400,1770277832260,-387.11639996,0.00010858,2]
[404547401,1770277832273,-2898.9649607,0.00010858,2]
[404547402,1770277832285,-2151.7138018,0.00010858,2]
[404547404,1770277832298,-297.04785907,0.00010858,2]
[404547407,1770277832310,-2418.70405355,0.00010858,2]
[404547418,1770277838443,-29155.57880594,0.00010858,2]
[404547420,1770277840095,-2104.4,0.00010858,2]
[404547422,1770277840160,-3554.411,0.00010858,2]
[404547423,1770277840355,-506576.47825652,0.00010858,2]
[404547424,1770277840515,-803.86727226,0.00010858,2]
[404547425,1770277840530,-10000.0,0.00010858,2]
[404547454,1770277844351,-186.46798093,0.00010858,2]
[404547455,1770277845564,-2924.05367742,0.00010858,2]
[404547456,1770277845584,-276.4984,0.00010858,2]
[404547457,1770277846169,-1080.15070161,0.00010858,2]
[404547458,1770277846320,-14446.7114,0.00010858,2]
[404547459,1770277846366,-797.86366019,0.00010858,2]
[404547488,1770277882475,-150.0,0.00010857,2]
[404547489,1770277882498,-253.29548484,0.00010858,2]
[404547490,1770277882525,-596.70451516,0.00010858,2]
[404549909,1770279032118,-229.0,9.634e-05,2]
[404549910,1770279032130,-981.11489401,9.634e-05,2]
[404549914,1770279032145,-18.88510599,9.634e-05,2]
[404549917,1770279032156,-250.0,9.703e-05,2]
[404549918,1770279032168,-271.07462139,9.772e-05,2]
[404549919,1770279032237,-4092.34537861,9.772e-05,2]
[404549920,1770279032249,-900.37,9.811e-05,2]
[404549921,1770279032260,-1200.0,9.876e-05,2]
[404549922,1770279032272,-16807.99146146,9.878e-05,2]
[404549923,1770279032286,-354.62,9.878e-05,2]
[404549924,1770279032357,-289.88510599,9.878e-05,2]
[404549925,1770279032371,-677.36324147,9.878e-05,2]
[404549926,1770279032393,-854.31250193,9.878e-05,2]
[404549927,1770279032408,-653.94812092,9.878e-05,2]
[404549928,1770279032421,-4742.63241699,9.878e-05,2]
[404549930,1770279038904,-265.21400284,9.811e-05,2]
[404549931,1770279038914,-1258.21359973,9.878e-05,2]
[404549932,1770279039022,-655.74511866,9.878e-05,2]
[404549933,1770279039034,-503.10305262,9.878e-05,2]
[404549934,1770279039049,-1103.16022683,9.878e-05,2]
[404549935,1770279039062,-3282.4151534,9.878e-05,2]
[404549936,1770279039072,-2603.1015616,9.931e-05,2]
[404549937,1770279039087,-5952.2067847,9.961e-05,2]
[404549938,1770279039131,-6420.3632153,9.961e-05,2]
[404549939,1770279039142,-150.0,0.00010187,2]
[404549940,1770279039152,-511.36,0.00010188,2]
[404549941,1770279039162,-150.325,0.0001029,2]
[404549942,1770279039172,-2458.048,0.0001029,2]
[404549943,1770279039182,-455.0,0.00010294,2]
[404549944,1770279039193,-1519.0,0.00010315,2]
[404549945,1770279039203,-4999.99,0.000104,2]
[404549946,1770279039213,-9999.99,0.000104,2]